bitfinex/quotes_BTCUSD_20250523
["timestamp","ask_amount","ask_price","bid_price","bid_amount"]
[1748011145258,0.01262971,109620.0,109610.0,2.81989186]
[1748011145444,0.01362971,109620.0,109610.0,2.81989186]
[1748011145823,0.00450796,109620.0,109610.0,2.81989186]
[1748011145990,0.01362971,109620.0,109610.0,2.81989186]
[1748011146189,0.00450796,109620.0,109610.0,2.81989186]
[1748011146593,0.01362963,109620.0,109610.0,2.90943742]
[1748011146796,0.00450796,109620.0,109610.0,2.90943742]
[1748011147006,0.26594195,109650.0,109640.0,0.19153576]
[1748011147205,0.29330048,109650.0,109640.0,1.22622884]
[1748011147407,0.29330048,109650.0,109640.0,1.23534934]
[1748011147615,0.29330048,109650.0,109640.0,1.25358993]
[1748011147814,0.11090052,109650.0,109640.0,1.2627101]
[1748011148017,0.01823868,109650.0,109640.0,2.3384081]
[1748011148184,0.21887681,109650.0,109640.0,2.3384081]
[1748011148413,0.21887681,109650.0,109640.0,2.32928793]
[1748011148974,0.25690051,109670.0,109660.0,0.19150099]
[1748011149203,0.25690051,109670.0,109650.0,0.54063813]
[1748011149204,0.20061975,109660.0,109650.0,0.54063813]
[1748011149418,0.20061975,109660.0,109650.0,1.67486213]
[1748011149666,0.20973867,109660.0,109650.0,1.66574246]
[1748011149845,0.20973867,109660.0,109650.0,1.61887746]
[1748011150060,0.19150091,109660.0,109650.0,1.33980592]
[1748011150480,0.19150091,109660.0,109650.0,1.52220446]
[1748011150701,0.25690051,109670.0,109660.0,0.00911901]
[1748011150702,0.002,109670.0,109660.0,0.00911901]
[1748011150919,0.01111585,109690.0,109680.0,0.20969994]
[1748011151125,0.21496345,109710.0,109700.0,0.1823154]
[1748011151333,0.22416592,109710.0,109700.0,0.667]
[1748011151552,0.19156592,109710.0,109700.0,0.667]
[1748011152003,0.34501148,109710.0,109700.0,0.667]
[1748011152468,0.34501148,109710.0,109700.0,1.04804]
[1748011152683,0.34501148,109710.0,109700.0,0.77468]
[1748011152892,0.34501148,109710.0,109700.0,0.39364]
[1748011153107,0.35955233,109710.0,109700.0,0.39364]
[1748011153559,0.36155233,109710.0,109700.0,0.39364]
[1748011153970,0.35955233,109710.0,109700.0,0.39364]
[1748011154193,0.34901148,109710.0,109700.0,0.39364]
[1748011155075,0.42413503,109710.0,109700.0,0.39364]
[1748011155497,0.255631,109700.0,109690.0,0.38104]
[1748011155730,0.34517656,109700.0,109690.0,0.38104]
[1748011155942,0.2006012,109670.0,109660.0,0.39556]
[1748011156189,0.35434676,109670.0,109660.0,0.77652]
[1748011156396,0.35434676,109670.0,109660.0,1.04984]
[1748011156821,0.35434676,109670.0,109660.0,0.39556]
[1748011157031,0.36888761,109670.0,109660.0,0.39556]
[1748011157493,0.36888761,109670.0,109660.0,0.002]
[1748011157695,1.45155927,109670.0,109660.0,0.002]
[1748011157908,0.2619561,109640.0,109630.0,0.65424]
[1748011158123,0.35150166,109640.0,109630.0,0.38096]
[1748011158337,0.19155323,109630.0,109620.0,0.39352]
[1748011158549,0.34239879,109630.0,109620.0,0.3936725]
[1748011159174,0.34239879,109630.0,109620.0,0.6669525]
[1748011159616,0.34339879,109630.0,109620.0,0.6669525]
[1748011159821,0.34339879,109630.0,109620.0,0.68524446]
[1748011160241,0.31329879,109630.0,109620.0,0.68524446]
[1748011160448,0.19255323,109630.0,109620.0,0.68524446]
[1748011160657,0.19355323,109630.0,109620.0,0.68524446]
[1748011162368,0.19155323,109630.0,109620.0,0.68524446]
[1748011162541,0.19255323,109630.0,109620.0,0.68524446]
[1748011164645,0.19255323,109630.0,109620.0,1.02524446]
[1748011165481,0.19255323,109630.0,109620.0,1.20769291]
[1748011165686,0.19255323,109630.0,109620.0,1.02524446]
[1748011165886,0.01924259,109630.0,109620.0,1.03436688]
[1748011166091,0.01823793,109660.0,109650.0,0.18238959]
[1748011166311,0.2097574,109650.0,109640.0,0.54975255]
[1748011166518,0.20063814,109650.0,109640.0,1.280877]
[1748011167903,0.20063814,109650.0,109640.0,1.283877]
[1748011168081,0.19863814,109650.0,109640.0,1.283877]
[1748011168637,0.19863814,109650.0,109640.0,1.47541276]
[1748011168836,0.19863814,109650.0,109640.0,1.50771276]
[1748011169223,0.1823819,109660.0,109650.0,0.19151838]
[1748011169435,0.18236527,109670.0,109660.0,0.1823819]
[1748011169436,0.20971913,109670.0,109660.0,0.1823819]
[1748011169639,0.20060137,109670.0,109660.0,0.46482099]
[1748011169841,0.19148336,109670.0,109660.0,0.81394]
[1748011170048,0.19148336,109670.0,109660.0,0.80482099]
[1748011170258,0.19148336,109670.0,109660.0,0.61332]
[1748011171397,0.19148336,109670.0,109660.0,0.34]
[1748011171599,0.19148336,109670.0,109630.0,0.19152026]
[1748011171600,0.34142892,109670.0,109630.0,0.19152026]
[1748011171802,0.01824043,109640.0,109630.0,0.63930807]
[1748011171975,0.02736093,109640.0,109630.0,2.65525807]
[1748011172564,0.02736093,109640.0,109630.0,2.68695807]
[1748011172793,0.2097761,109640.0,109630.0,2.15578207]
[1748011172957,0.02736093,109640.0,109630.0,2.17402424]
[1748011173153,0.00912009,109640.0,109630.0,2.17402424]
[1748011173476,0.01824034,109640.0,109630.0,2.17802424]
[1748011173818,0.01824034,109640.0,109630.0,2.17766424]
[1748011173933,0.01824034,109640.0,109630.0,2.18066424]
[1748011174131,0.01824026,109640.0,109630.0,2.18066424]
[1748011174332,0.01824026,109640.0,109630.0,1.95222947]
[1748011174568,0.20061967,109660.0,109650.0,0.20063797]
[1748011174764,0.20061967,109660.0,109650.0,1.16003797]
[1748011175039,0.20061967,109660.0,109650.0,1.06953714]
[1748011175242,0.20973876,109660.0,109650.0,0.93041925]
[1748011175400,0.20062,109660.0,109650.0,0.89098738]
[1748011175595,0.1823819,109660.0,109650.0,0.90010713]
[1748011175901,0.20973834,109660.0,109650.0,0.90010713]
[1748011176097,0.20973834,109660.0,109650.0,0.90922664]
[1748011176262,0.20973834,109660.0,109650.0,0.89098746]
[1748011176469,0.20973834,109660.0,109650.0,0.61432]
[1748011176673,0.20061975,109660.0,109650.0,0.341]
[1748011176876,0.23231975,109660.0,109650.0,0.99496]
[1748011177078,0.26471975,109660.0,109650.0,0.99496]
[1748011177572,0.26471975,109660.0,109650.0,0.38164]
[1748011177827,0.26471975,109660.0,109650.0,0.65496]
[1748011178063,0.35426531,109660.0,109650.0,0.001]
[1748011178207,0.35426531,109660.0,109650.0,0.65492]
[1748011178950,0.32186531,109660.0,109650.0,0.65492]
[1748011179717,0.20061975,109660.0,109650.0,0.66403992]
[1748011179936,0.01823743,109660.0,109650.0,1.62456206]
[1748011180174,0.03647536,109660.0,109650.0,1.62456214]
[1748011180346,0.20061983,109660.0,109650.0,1.45954346]
[1748011180563,0.19150091,109660.0,109650.0,1.30590246]
[1748011181200,0.00911876,109660.0,109650.0,1.33326123]
[1748011181409,0.21885718,109660.0,109650.0,1.32414189]
[1748011181601,0.21885718,109660.0,109650.0,1.3332614]
[1748011181806,0.20973867,109660.0,109650.0,1.3150223]
[1748011182010,0.20973867,109660.0,109650.0,1.33326131]
[1748011182196,0.20973867,109660.0,109650.0,1.32414189]
[1748011182535,0.20973867,109660.0,109650.0,1.3332614]
[1748011182897,0.20061991,109660.0,109650.0,1.32414206]
[1748011183344,0.01823759,109660.0,109650.0,1.34238057]
[1748011183519,0.20973858,109660.0,109650.0,1.33326123]
[1748011183729,0.20973858,109660.0,109650.0,1.32414181]
[1748011184131,0.20061991,109660.0,109650.0,1.31502214]
[1748011184493,0.19150099,109660.0,109650.0,0.341]
[1748011184910,0.19150099,109660.0,109650.0,0.99488]
[1748011185082,0.22420099,109660.0,109650.0,0.7216]
[1748011185287,0.22420099,109660.0,109650.0,1.00349958]
[1748011185494,0.22420099,109660.0,109650.0,0.34961958]
[1748011185699,0.25520099,109660.0,109650.0,0.00961958]
[1748011185899,0.34474655,109660.0,109650.0,0.00961958]
[1748011186126,0.34474655,109660.0,109650.0,0.39021958]
[1748011186127,0.41916862,109660.0,109650.0,0.39021958]
[1748011186327,0.43370947,109660.0,109650.0,0.39021958]
[1748011186779,0.43370947,109660.0,109650.0,0.3806]
[1748011187222,0.34474655,109660.0,109650.0,0.3816]
[1748011187433,0.34474655,109660.0,109650.0,0.3806]
[1748011188446,0.34674655,109660.0,109650.0,0.3806]
[1748011189279,0.31574655,109660.0,109650.0,0.3806]
[1748011190700,0.34754655,109660.0,109650.0,0.3806]
[1748011191241,0.34754655,109660.0,109650.0,0.65392]
[1748011194105,0.20067456,109630.0,109620.0,0.33]
[1748011194320,0.20067456,109630.0,109620.0,1.3776725]
[1748011194536,0.20067456,109630.0,109620.0,0.7237125]
[1748011194750,0.20067456,109630.0,109620.0,1.3776725]
[1748011194925,0.20067456,109630.0,109620.0,0.7237125]
[1748011195201,0.20067456,109630.0,109620.0,1.3776725]
[1748011195405,0.20067456,109630.0,109620.0,1.56012095]
[1748011195825,0.20067456,109630.0,109620.0,2.11452537]
[1748011196266,0.19155331,109630.0,109620.0,1.3776725]
[1748011196475,0.20067456,109630.0,109620.0,1.6227185]
[1748011196684,0.20067456,109630.0,109620.0,1.82741145]
[1748011196898,0.20979548,109630.0,109620.0,1.83953354]
[1748011197101,0.21891707,109630.0,109620.0,1.91205554]
[1748011197308,0.20979607,109630.0,109620.0,1.90293354]
[1748011198227,0.20979607,109630.0,109620.0,1.88468928]
[1748011198419,0.1915534,109630.0,109620.0,1.3846725]
[1748011201502,0.1915534,109630.0,109620.0,0.0071525]
[1748011201744,0.34349896,109630.0,109620.0,0.0071525]
[1748011201948,0.34349896,109630.0,109620.0,0.6611525]
[1748011202164,0.44756132,109630.0,109620.0,0.6611525]
[1748011202379,0.34349896,109630.0,109620.0,0.6611525]
[1748011203238,0.34349896,109630.0,109620.0,0.6571525]
[1748011203656,0.34349896,109630.0,109620.0,0.6541525]
[1748011203837,0.34549896,109630.0,109620.0,0.6541525]
[1748011205407,0.31449896,109630.0,109620.0,0.6541525]
[1748011205640,0.28309896,109630.0,109620.0,0.6541525]
[1748011206053,0.31389896,109630.0,109620.0,0.6541525]
[1748011206567,0.34559896,109630.0,109620.0,0.6541525]
[1748011207157,0.31389896,109630.0,109620.0,0.6541525]
[1748011208375,0.1935534,109630.0,109620.0,0.6541525]
[1748011208602,0.18443181,109630.0,109620.0,0.71567275]
[1748011208843,0.18443181,109630.0,109620.0,0.6541525]
[1748011212053,0.18443181,109630.0,109620.0,0.0001525]
[1748011212335,0.18443181,109630.0,109620.0,0.6537525]
[1748011212634,0.33657737,109630.0,109620.0,0.6537525]
[1748011213669,0.33657737,109630.0,109620.0,0.0001525]
[1748011213881,0.44063973,109630.0,109620.0,0.0001525]
[1748011214095,1.56937372,109630.0,109620.0,0.0001525]
[1748011214729,1.1384218,109630.0,109620.0,0.0001525]
[1748011214932,0.8815158,109630.0,109620.0,0.0001525]
[1748011215575,0.80709373,109630.0,109620.0,0.0001525]
[1748011215782,0.80509373,109630.0,109620.0,0.0001525]
[1748011215992,0.34911822,109630.0,109620.0,0.0001525]
[1748011216198,0.35311822,109630.0,109620.0,0.0001525]
[1748011216812,0.35511822,109630.0,109620.0,0.0001525]
[1748011217456,0.63851822,109630.0,109620.0,0.0001525]
[1748011217669,0.72803973,109630.0,109620.0,0.0001525]
[1748011217959,1.06803973,109630.0,109620.0,0.0001525]
[1748011218383,1.08459062,109630.0,109620.0,0.0001525]
[1748011220608,0.71166911,109630.0,109620.0,0.0001525]
[1748011220942,0.34057737,109630.0,109620.0,0.0001525]
[1748011221258,0.30997737,109630.0,109620.0,0.0001525]
[1748011221465,0.27797737,109630.0,109620.0,0.6539125]
[1748011222293,0.27397737,109630.0,109620.0,0.6539125]
[1748011222628,0.27597737,109630.0,109620.0,0.6539125]
[1748011223245,0.004,109630.0,109620.0,1.66314721]
[1748011223461,0.2229164,109630.0,109620.0,2.67735337]
[1748011223777,0.2300379,109630.0,109620.0,2.67735337]
[1748011223941,0.22191698,109630.0,109620.0,2.67735337]
[1748011224145,0.02736367,109630.0,109620.0,2.67735337]
[1748011224392,0.21891698,109630.0,109620.0,2.67735337]
[1748011224651,0.19154707,109650.0,109640.0,0.59343584]
[1748011224838,0.20063797,109650.0,109640.0,0.49144556]
[1748011225045,0.20063797,109650.0,109640.0,1.02556]
[1748011225247,0.20063797,109650.0,109640.0,0.99376]
[1748011225481,0.20063797,109650.0,109640.0,1.00241033]
[1748011226474,0.20063797,109650.0,109640.0,0.99376]
[1748011226835,0.20163797,109650.0,109640.0,0.99376]
[1748011227025,0.20063797,109650.0,109640.0,0.99376]
[1748011227436,0.20063797,109650.0,109640.0,0.99476]
[1748011227837,0.20063797,109650.0,109640.0,0.72132]
[1748011228050,0.29018353,109650.0,109640.0,0.99472]
[1748011228258,0.20063797,109650.0,109640.0,1.05624025]
[1748011228473,0.20063797,109650.0,109640.0,0.99472]
[1748011228676,0.01823893,109650.0,109640.0,1.98020117]
[1748011228882,0.20975781,109650.0,109640.0,1.572503]
[1748011229195,0.20063822,109650.0,109640.0,1.327207]
[1748011229614,0.00911801,109670.0,109650.0,0.08343918]
[1748011229832,0.20058467,109680.0,109670.0,0.34]
[1748011230033,0.20058467,109680.0,109670.0,1.24618]
[1748011230605,0.20058467,109680.0,109670.0,1.31138]
[1748011230811,0.20970052,109680.0,109670.0,1.50286336]
[1748011231041,0.20073581,109680.0,109670.0,1.31138]
[1748011231213,0.19161847,109680.0,109670.0,1.31138]
[1748011231427,0.20073565,109680.0,109670.0,1.51198138]
[1748011231647,0.20985266,109680.0,109670.0,1.50286345]
[1748011231838,0.20985266,109680.0,109670.0,1.51198154]
[1748011232054,0.01838658,109680.0,109670.0,1.51198154]
[1748011232294,0.00015239,109680.0,109670.0,1.61976271]
[1748011232484,0.20054984,109700.0,109690.0,0.34]
[1748011232711,0.20054984,109700.0,109690.0,0.726605]
[1748011232928,0.39501747,109700.0,109690.0,0.01644191]
[1748011233115,0.39501747,109700.0,109670.0,0.28192345]
[1748011233116,0.20058292,109680.0,109670.0,0.28192345]
[1748011233313,0.27500499,109680.0,109670.0,0.00860345]
[1748011233549,0.39675055,109680.0,109670.0,1.05772345]
[1748011233751,0.42765055,109680.0,109670.0,0.3956]
[1748011233956,0.42765055,109680.0,109670.0,0.7758]
[1748011234296,0.42765055,109680.0,109670.0,0.3976]
[1748011234492,0.42765055,109680.0,109670.0,0.43556]
[1748011234698,0.39675055,109680.0,109670.0,0.43356]
[1748011235115,0.39775055,109680.0,109670.0,0.43356]
[1748011235679,0.42815055,109680.0,109670.0,0.3936]
[1748011235829,0.42815055,109680.0,109670.0,0.66692]
[1748011236989,0.32332848,109680.0,109670.0,0.66692]
[1748011237193,0.0364781,109650.0,109640.0,0.26485557]
[1748011237425,0.20063805,109650.0,109640.0,0.74048209]
[1748011237650,0.20063805,109650.0,109640.0,0.57762609]
[1748011237884,0.20063805,109650.0,109640.0,0.75832393]
[1748011238122,0.20063805,109650.0,109640.0,0.83832393]
[1748011238369,0.20063805,109650.0,109640.0,1.11164393]
[1748011238615,0.20063805,109650.0,109640.0,1.12676435]
[1748011238857,0.20063805,109650.0,109640.0,1.14328375]
[1748011239349,0.20063805,109650.0,109640.0,1.48328375]
[1748011239588,0.20063805,109650.0,109640.0,1.48328392]
[1748011239801,0.20973809,109660.0,109650.0,0.24987689]
[1748011240009,0.00911834,109660.0,109650.0,1.91163058]
[1748011240209,0.00911834,109660.0,109650.0,1.61783458]
[1748011240413,0.00911834,109660.0,109650.0,1.95783458]
[1748011240620,0.02735544,109660.0,109650.0,1.95783458]
[1748011240785,0.2279757,109660.0,109650.0,1.94871541]
[1748011241216,0.2279757,109660.0,109650.0,1.53508041]
[1748011241762,0.21885727,109660.0,109650.0,1.55732025]
[1748011241967,0.01823727,109660.0,109650.0,1.56643959]
[1748011242171,0.02735619,109660.0,109650.0,1.56643959]
[1748011242378,0.03647528,109660.0,109650.0,1.56643959]
[1748011242796,0.02735619,109660.0,109650.0,1.56643959]
[1748011243003,0.01823727,109660.0,109650.0,1.56643959]
[1748011243215,0.03647503,109660.0,109650.0,1.56643959]
[1748011243417,0.04559404,109660.0,109650.0,1.56643959]
[1748011243813,0.04559404,109660.0,109650.0,1.54820083]
[1748011244035,0.20973867,109660.0,109650.0,1.53908124]
[1748011244236,0.19150091,109660.0,109650.0,0.98880057]
[1748011244519,0.19150091,109660.0,109650.0,0.99792033]
[1748011244731,0.19150091,109660.0,109650.0,1.00704]
[1748011244860,0.19150091,109660.0,109650.0,1.01615959]
[1748011245074,0.20061967,109660.0,109650.0,1.02527893]
[1748011245288,0.01823777,109660.0,109650.0,1.02527893]
[1748011245484,0.20973876,109660.0,109650.0,1.01615959]
[1748011245688,0.20973876,109660.0,109650.0,1.0252791]
[1748011245897,0.20973876,109660.0,109650.0,1.28032]
[1748011246348,0.20973876,109660.0,109650.0,1.68295959]
[1748011246551,0.20973876,109660.0,109650.0,1.6920791]
[1748011246711,0.20973876,109660.0,109650.0,1.6920786]
[1748011246931,0.18236527,109670.0,109660.0,0.20061983]
[1748011247134,0.20060096,109670.0,109660.0,1.66344959]
[1748011247334,0.2188374,109670.0,109660.0,1.67256818]
[1748011247555,0.03647196,109670.0,109660.0,1.68168669]
[1748011247801,0.25677072,109680.0,109670.0,0.20971871]
[1748011247802,0.01823411,109680.0,109670.0,0.20971871]
[1748011248127,0.01823411,109680.0,109670.0,2.6349302]
[1748011248128,0.02735054,109680.0,109670.0,2.6349302]
[1748011248249,0.22079692,109690.0,109680.0,0.54058326]
[1748011248459,0.21168107,109690.0,109680.0,0.852956]
[1748011248675,0.20256497,109690.0,109680.0,0.808266]
[1748011250055,0.20256497,109690.0,109680.0,0.34]
[1748011250278,0.19146591,109680.0,109670.0,0.35879155]
[1748011250508,0.19146591,109680.0,109670.0,0.65484]
[1748011250752,0.19146591,109680.0,109670.0,0.99484]
[1748011250962,0.22366591,109680.0,109650.0,0.40429447]
[1748011251108,0.19961949,109660.0,109650.0,0.5868454]
[1748011251325,0.19961949,109660.0,109650.0,1.39728686]
[1748011251504,0.19050082,109660.0,109650.0,1.58880532]
[1748011251704,0.18950082,109660.0,109650.0,1.99704616]
[1748011252410,0.18950082,109660.0,109650.0,2.00004616]
[1748011252633,0.18950082,109660.0,109650.0,2.00204616]
[1748011252836,0.18950082,109660.0,109650.0,1.53435367]
[1748011253248,0.18950082,109660.0,109650.0,1.40926767]
[1748011253661,0.18950082,109660.0,109650.0,0.74730775]
[1748011253879,0.18950082,109660.0,109650.0,1.40018775]
[1748011254452,0.22070082,109660.0,109650.0,1.12694775]
[1748011254668,0.22070082,109660.0,109650.0,0.40730775]
[1748011254857,0.41636845,109660.0,109650.0,0.78694775]
[1748011255068,0.47624332,109660.0,109650.0,0.78694775]
[1748011255239,0.41636845,109660.0,109650.0,0.78694775]
[1748011255634,0.41636845,109660.0,109650.0,0.78494775]
[1748011255837,0.41636845,109660.0,109650.0,0.77331239]
[1748011257107,0.4309093,109660.0,109650.0,0.77331239]
[1748011257260,1.1191093,109660.0,109650.0,0.77331239]
[1748011257472,1.20863081,109660.0,109650.0,0.00015239]
[1748011257700,1.21163081,109660.0,109650.0,0.00015239]
[1748011258124,1.21163081,109660.0,109620.0,0.65392]
[1748011258125,0.25445323,109630.0,109620.0,0.65392]
[1748011258325,0.31229879,109630.0,109620.0,0.6540725]
[1748011258543,0.19155323,109630.0,109620.0,0.6540725]
[1748011259137,0.20067457,109630.0,109620.0,0.6540725]
[1748011259371,0.00912084,109630.0,109620.0,1.20388721]
[1748011259521,0.21891667,109630.0,109620.0,1.75891453]
[1748011259725,0.20979583,109630.0,109620.0,1.78289253]
[1748011259952,0.20979583,109630.0,109620.0,1.7920147]
[1748011260171,0.20067474,109630.0,109620.0,1.7920147]
[1748011260337,0.20067474,109630.0,109620.0,1.8011367]
[1748011260547,0.18241517,109640.0,109630.0,0.54067457]
[1748011260753,0.18241517,109640.0,109630.0,1.24117004]
[1748011261002,0.20065643,109640.0,109630.0,1.24117004]
[1748011261157,0.00911934,109650.0,109640.0,0.20065585]
[1748011261364,0.00911834,109660.0,109650.0,0.54975739]
[1748011261545,0.02735544,109660.0,109650.0,1.67004229]
[1748011261747,0.03647436,109660.0,109650.0,1.70314229]
[1748011261946,0.03647436,109660.0,109650.0,1.69303929]
[1748011262148,0.22797511,109660.0,109650.0,1.50849474]
[1748011262420,0.21885677,109660.0,109650.0,1.4993754]
[1748011262675,0.21885677,109660.0,109650.0,1.5003754]
[1748011262878,0.03647487,109660.0,109650.0,1.5003754]
[1748011263085,0.21885677,109660.0,109650.0,1.49125598]
[1748011263302,0.01823743,109660.0,109650.0,1.49125598]
[1748011263520,0.01823743,109660.0,109650.0,1.53317532]
[1748011263521,0.0182371,109660.0,109650.0,1.53317532]
[1748011263730,0.03847487,109660.0,109650.0,1.53317532]
[1748011263931,0.22997586,109660.0,109650.0,1.50037549]
[1748011264133,0.0364747,109660.0,109650.0,1.49949483]
[1748011264275,0.04559362,109660.0,109650.0,1.50861442]
[1748011264496,0.00911793,109670.0,109660.0,0.20061983]
[1748011264693,0.25677072,109680.0,109660.0,1.88402862]
[1748011264906,0.20058326,109680.0,109670.0,0.90247778]
[1748011265109,0.20058326,109680.0,109670.0,0.88037854]
[1748011265324,0.00911668,109680.0,109670.0,0.88949563]
[1748011265532,0.02023294,109690.0,109680.0,0.20058325]
[1748011265750,0.20270387,109690.0,109680.0,1.165778]
[1748011265959,0.20270387,109690.0,109680.0,0.78840145]
[1748011265960,0.19358744,109690.0,109680.0,0.78840145]
[1748011267783,0.19358744,109690.0,109680.0,0.00964145]
[1748011267991,0.22638744,109690.0,109680.0,0.66220145]
[1748011268204,0.25858744,109690.0,109680.0,0.66320145]
[1748011268442,0.348133,109690.0,109680.0,0.002]
[1748011268666,0.348133,109690.0,109680.0,0.65456]
[1748011269146,0.348133,109690.0,109680.0,0.65356]
[1748011269607,0.348133,109690.0,109680.0,0.38028]
[1748011269838,0.348133,109690.0,109680.0,0.65256]
[1748011270055,0.349133,109690.0,109680.0,0.65256]
[1748011271963,0.19458744,109690.0,109680.0,0.66167743]
[1748011272177,0.21281947,109690.0,109680.0,1.52987452]
[1748011272377,0.21281947,109690.0,109680.0,1.50832652]
[1748011272582,0.21281947,109690.0,109680.0,1.49920942]
[1748011272939,0.19458736,109690.0,109680.0,0.91887743]
[1748011273105,0.18547093,109690.0,109680.0,1.06114342]
[1748011273310,0.20370346,109690.0,109680.0,1.07026052]
[1748011273502,0.19458753,109690.0,109680.0,1.06114342]
[1748011273909,0.19458753,109690.0,109680.0,1.0697704]
[1748011274386,0.19458753,109690.0,109680.0,0.66118698]
[1748011274632,0.19458753,109690.0,109680.0,0.82143798]
[1748011275049,0.19458753,109690.0,109680.0,0.66118698]
[1748011275590,0.19458753,109690.0,109680.0,0.08862698]
[1748011275811,0.22478753,109690.0,109680.0,0.08862698]
[1748011276025,0.22478753,109690.0,109680.0,0.73248]
[1748011276637,0.2006012,109670.0,109660.0,0.40429447]
[1748011276845,0.19148336,109670.0,109660.0,1.33602847]
[1748011277069,0.19148336,109670.0,109660.0,1.05677447]
[1748011277287,0.19148336,109670.0,109660.0,0.40215763]
[1748011277517,0.19148336,109670.0,109660.0,0.38787763]
[1748011277518,0.68602892,109670.0,109660.0,0.38787763]
[1748011277753,0.77555043,109670.0,109660.0,0.01063763]
[1748011277962,1.47829128,109670.0,109660.0,0.01063763]
[1748011278172,1.47829128,109670.0,109660.0,0.002]
[1748011278620,1.38876977,109670.0,109660.0,0.004]
[1748011279048,1.38876977,109670.0,109660.0,0.002]
[1748011279252,0.23293781,109650.0,109640.0,0.65248]
[1748011279459,0.32248337,109650.0,109640.0,0.37924]
[1748011279674,0.35298337,109650.0,109640.0,0.65252]
[1748011280277,0.35298337,109650.0,109640.0,0.65352]
[1748011280488,0.20063781,109650.0,109640.0,0.65352]
[1748011281332,0.20063781,109650.0,109640.0,1.451434]
[1748011281582,0.20063781,109650.0,109640.0,1.268881]
[1748011281785,0.1915183,109650.0,109640.0,1.168501]
[1748011281992,0.1915183,109650.0,109640.0,0.895221]
[1748011282208,0.1915183,109650.0,109640.0,0.65456]
[1748011284583,0.1915183,109650.0,109640.0,1.319032]
[1748011284792,0.18239854,109650.0,109640.0,0.65456]
[1748011285202,0.21479854,109650.0,109640.0,0.38128]
[1748011285447,0.3365441,109650.0,109640.0,0.6546]
[1748011285857,0.3365441,109650.0,109640.0,0.002]
[1748011286013,0.3958804,109650.0,109640.0,0.38132]
[1748011286215,0.3958804,109650.0,109640.0,0.6546]
[1748011287235,0.3958804,109650.0,109640.0,0.6536]
[1748011287669,0.3365441,109650.0,109640.0,0.6536]
[1748011287887,0.3365441,109650.0,109640.0,0.6526]
[1748011289687,0.2719441,109650.0,109640.0,0.6526]
[1748011290552,0.18236363,109680.0,109660.0,0.02735636]
[1748011290684,0.22809305,109670.0,109660.0,0.53378058]
[1748011290876,0.20985853,109670.0,109660.0,2.32050699]
[1748011291077,0.2007406,109670.0,109660.0,1.79660899]
[1748011291281,0.2007406,109670.0,109660.0,1.81484676]
[1748011291482,0.018375,109670.0,109660.0,1.82396527]
[1748011291727,0.20074027,109670.0,109660.0,1.805728]
[1748011292040,0.19162234,109670.0,109660.0,1.246878]
[1748011292350,0.19162234,109670.0,109660.0,1.43837899]
[1748011292578,0.19162234,109670.0,109660.0,1.447498]
[1748011293485,0.19162234,109670.0,109660.0,1.246878]
[1748011293700,0.19162234,109670.0,109660.0,1.4292599]
[1748011293891,0.19162234,109670.0,109660.0,1.43837891]
[1748011294145,0.19162234,109670.0,109660.0,1.44749783]
[1748011294797,0.19162234,109670.0,109660.0,1.48039783]
[1748011295204,0.19162234,109670.0,109660.0,1.47127891]
[1748011296189,0.00013889,109670.0,109660.0,1.61026174]
[1748011296397,0.01837416,109670.0,109660.0,1.61026174]
[1748011296598,0.21897554,109670.0,109660.0,1.61026174]
[1748011296804,0.03661027,109670.0,109660.0,1.61022174]
[1748011297007,0.02749209,109670.0,109660.0,1.61022174]
[1748011297401,0.03661018,109670.0,109660.0,1.61022174]
[1748011297649,0.03661018,109670.0,109660.0,1.61887005]
[1748011298211,0.02749209,109670.0,109660.0,1.61887005]
[1748011298466,0.03661018,109670.0,109660.0,1.61887005]
[1748011298771,0.01837408,109670.0,109660.0,1.61887005]
[1748011298974,0.00013889,109670.0,109660.0,1.61887005]
[1748011299131,0.00013889,109670.0,109660.0,1.6334109]
[1748011299553,0.0183745,109670.0,109660.0,1.6334109]
[1748011299760,0.00013889,109670.0,109660.0,1.6334109]
[1748011299958,0.01837416,109670.0,109660.0,1.6334109]
[1748011300162,0.01837416,109670.0,109660.0,1.6374109]
[1748011300386,0.01837408,109670.0,109660.0,1.6374109]
[1748011300657,0.02749201,109670.0,109660.0,1.61917363]
[1748011300846,0.20074027,109670.0,109660.0,0.72929187]
[1748011301196,0.20074027,109670.0,109660.0,1.00480831]
[1748011301405,0.20074027,109670.0,109660.0,1.11492931]
[1748011301608,0.19148345,109670.0,109660.0,1.11492931]
[1748011301991,0.19148345,109670.0,109660.0,1.110281]
[1748011302140,0.19148345,109670.0,109660.0,1.106281]
[1748011302348,0.19148345,109670.0,109660.0,1.102281]
[1748011302561,0.19148345,109670.0,109660.0,1.106281]
[1748011303807,0.22348345,109670.0,109660.0,0.004]
[1748011304029,0.34412901,109670.0,109660.0,0.65616]
[1748011304275,0.34412901,109670.0,109660.0,0.004]
[1748011304719,0.34412901,109670.0,109660.0,0.002]
[1748011305632,0.19150082,109660.0,109650.0,0.65216]
[1748011305871,0.34274638,109660.0,109650.0,0.65216]
[1748011306678,0.34474638,109660.0,109650.0,0.65216]
[1748011307891,0.19350082,109660.0,109650.0,0.65216]
[1748011308632,0.19450082,109660.0,109650.0,0.65216]
[1748011310139,0.22450082,109660.0,109650.0,0.65216]
[1748011310411,0.22450082,109660.0,109650.0,0.6522]
[1748011310607,0.22450082,109660.0,109630.0,0.73344]
[1748011310608,0.2006561,109640.0,109630.0,0.73344]
[1748011310814,0.2006561,109640.0,109630.0,1.633749]
[1748011311648,0.2006561,109640.0,109630.0,1.634749]
[1748011311819,0.2006561,109640.0,109630.0,1.1144]
[1748011312016,0.2006561,109640.0,109630.0,1.38768]
[1748011312519,0.2006561,109640.0,109630.0,1.84923081]
[1748011312706,0.2006561,109640.0,109630.0,1.492631]
[1748011313303,0.20040288,109640.0,109630.0,1.492631]
[1748011313505,0.20040288,109640.0,109630.0,1.38768]
[1748011313723,0.19610288,109640.0,109630.0,1.38768]
[1748011314092,0.22610288,109640.0,109630.0,1.1144]
[1748011314222,0.22610288,109640.0,109630.0,1.38768]
[1748011315050,0.22610288,109640.0,109630.0,1.38568]
[1748011315459,0.25780288,109640.0,109630.0,1.38568]
[1748011315894,0.19610288,109640.0,109630.0,1.38568]
[1748011316626,0.19610288,109640.0,109630.0,1.38572]
[1748011318883,0.19610288,109640.0,109630.0,0.77244]
[1748011319089,0.34874844,109640.0,109630.0,0.39344]
[1748011319311,0.34874844,109640.0,109630.0,0.77244]
[1748011319561,0.36328929,109640.0,109630.0,0.77244]
[1748011320097,0.36328929,109640.0,109630.0,0.379]
[1748011320722,0.3632183,109640.0,109630.0,0.379]
[1748011320925,0.3662183,109640.0,109630.0,0.379]
[1748011321137,0.26231101,109610.0,109600.0,0.002]
[1748011321340,0.35185657,109610.0,109600.0,0.381]
[1748011321551,0.36639742,109610.0,109600.0,0.381]